fUSD/lending_fUSD_20260115
["ID","MTS","AMOUNT","RATE_DAILY","PERIOD"]
[402093091,1768516270492,518.71096561,0.00015593,2]
[402093092,1768516270542,341.15949194,0.00015593,2]
[402093093,1768516270586,156.75586223,0.00015593,2]
[402093094,1768516270726,500.0,0.00015593,2]
[402093095,1768516270809,500.0,0.00015593,2]
[402093096,1768516270936,500.0,0.00015593,2]
[402093097,1768516270984,500.0,0.00015593,2]
[402093098,1768516271040,500.0,0.00015593,2]
[402093099,1768516271195,500.0,0.00015593,2]
[402093100,1768516271281,500.0,0.00015593,2]
[402093101,1768516271423,230.88616484,0.00015593,2]
[402093102,1768516271458,6.96052252,0.00015593,2]
[402093103,1768516271938,-1326.09676038,0.00016438,2]
[402093104,1768516271949,-1326.09676038,0.00016438,2]
[402093105,1768516271959,-1326.09676038,0.00016438,2]
[402093106,1768516271969,-1326.09676038,0.00016438,2]
[402093107,1768516271979,-1326.09676038,0.00016438,2]
[402093108,1768516271989,-1326.09676038,0.00016438,2]
[402093109,1768516271999,-1326.09676038,0.00016438,2]
[402093110,1768516272009,-1326.09676038,0.00016438,2]
[402093111,1768516272020,-1326.09676038,0.00016438,2]
[402093112,1768516272030,-1326.09676038,0.00016438,2]
[402093113,1768516272040,-1326.09676038,0.00016438,2]
[402093114,1768516272049,-1326.09676038,0.00016438,2]
[402093115,1768516272060,-1326.09676038,0.00016438,2]
[402093116,1768516272070,-1326.09676038,0.00016438,2]
[402093117,1768516272080,-1326.09676038,0.00016438,2]
[402093118,1768516272090,-1326.09676038,0.00016438,2]
[402093119,1768516272100,-1326.09676038,0.00016438,2]
[402093120,1768516272110,-1326.09676038,0.00016438,2]
[402093121,1768516272120,-1326.09676038,0.00016438,2]
[402093122,1768516272132,-1326.09676038,0.00016438,2]
[402093123,1768516272143,-1326.09676038,0.00016438,2]
[402093124,1768516272153,-1326.09676038,0.00016438,2]
[402093125,1768516272163,-1326.09676038,0.00016438,2]
[402093126,1768516272174,-1326.09676038,0.00016438,2]
[402093127,1768516272184,-1326.09676038,0.00016438,2]
[402093128,1768516272195,-1326.09676038,0.00016438,2]
[402093129,1768516272207,-1326.09676038,0.00016438,2]
[402093130,1768516272218,-1326.09676038,0.00016438,2]
[402093131,1768516272228,-1326.09676038,0.00016438,2]
[402093132,1768516272238,-1326.09676038,0.00016438,2]
[402093133,1768516272247,-1326.09676038,0.00016438,2]
[402093134,1768516272258,-1326.09676038,0.00016438,2]
[402093135,1768516272267,-1326.09676038,0.00016438,2]
[402093136,1768516272277,-1326.09676038,0.00016438,2]
[402093137,1768516272291,-1326.09676038,0.00016438,2]
[402093138,1768516272302,-1326.09676038,0.00016438,2]
[402093139,1768516272312,-1326.09676038,0.00016438,2]
[402093140,1768516272322,-1326.09676038,0.00016438,2]
[402093141,1768516272335,-1326.09676038,0.00016438,2]
[402093142,1768516272346,-1326.09676038,0.00016438,2]
[402093143,1768516272356,-1326.09676038,0.00016438,2]
[402093144,1768516272366,-1326.09676038,0.00016438,2]
[402093145,1768516272377,-1326.09676038,0.00016438,2]
[402093146,1768516272387,-1326.09676038,0.00016438,2]
[402093147,1768516272397,-1326.09676038,0.00016438,2]
[402093148,1768516272408,-1326.09676038,0.00016438,2]
[402093149,1768516272418,-1326.09676038,0.00016438,2]
[402093150,1768516272427,-1326.09676038,0.00016438,2]
[402093151,1768516272437,-1326.09676038,0.00016438,2]
[402093152,1768516272447,-1326.09676038,0.00016438,2]
[402093153,1768516272458,-1326.09676038,0.00016438,2]
[402093154,1768516272468,-1326.09676038,0.00016438,2]
[402093155,1768516272478,-1326.09676038,0.00016438,2]
[402093156,1768516272492,-500.0,0.00035616,10]
[402093157,1768516272502,-3324.97334499,0.0003589,10]
[402093158,1768516272512,-500.0,0.0003589,10]
[402093159,1768516272522,-500.0,0.0003589,10]
[402093160,1768516272532,-500.0,0.0003589,10]
[402093161,1768516272542,-500.0,0.0003589,10]
[402093162,1768516272552,-1563.63,0.0003589,10]
[402093163,1768516272562,-500.0,0.0003589,10]
[402093164,1768516272572,-622.17681032,0.0003589,10]
[402093165,1768516272582,-732.84,0.0003589,10]
[402093166,1768516272594,-500.0,0.0003589,10]
[402093167,1768516272604,-1151.94,0.0003589,10]
[402093168,1768516272614,-1192.41,0.0003589,10]
[402093169,1768516272624,-1326.72,0.0003589,10]
[402093170,1768516272634,-562.55,0.0003589,10]
[402093171,1768516272644,-500.0,0.0003589,10]
[402093172,1768516272654,-500.0,0.0003589,10]
[402093173,1768516272664,-500.0,0.0003589,10]
[402093174,1768516272677,-1485.23,0.0003589,10]
[402093175,1768516272687,-956.71,0.0003589,10]
[402093176,1768516272698,-500.0,0.0003589,10]
[402093177,1768516272709,-525.63,0.0003589,10]
[402093178,1768516272722,-513.31,0.0003589,10]
[402093179,1768516272734,-500.0,0.0003589,10]
[402093180,1768516272746,-791.48,0.0003589,10]
[402093181,1768516272759,-151.0,0.0003589,31]
[402093182,1768516272924,-500.0,0.0003589,10]
[402093183,1768516272934,-276.990553,0.0003589,31]
[402093184,1768516272944,-1505.4,0.0003589,10]
[402093185,1768516272953,-500.0,0.0003589,10]
[402093186,1768516272964,-500.0,0.0003589,10]
[402093187,1768516272975,-500.0,0.0003589,10]
[402093188,1768516272984,-1908.1,0.0003589,10]
[402093189,1768516272994,-547.37,0.0003589,10]
[402093190,1768516273003,-1251.55,0.0003589,10]
[402093191,1768516273013,-750.58,0.0003589,10]
[402093192,1768516273022,-500.0,0.0003589,10]
[402093193,1768516273031,-500.0,0.0003589,10]
[402093194,1768516273041,-235.52238081,0.0003589,10]
[402093195,1768516273050,-1705.15,0.0003589,10]
[402093196,1768516273060,-2358.16,0.0003589,10]
[402093197,1768516273069,-599.0,0.0003589,10]
[402093198,1768516273078,-500.0,0.0003589,10]
[402093199,1768516273089,-1162.14,0.0003589,10]
[402093200,1768516273100,-500.0,0.0003589,10]
[402093201,1768516273111,-151.0,0.0003589,31]
[402093202,1768516273122,-800.12,0.0003589,10]
[402093203,1768516273131,-500.0,0.0003589,10]
[402093204,1768516273140,-500.0,0.0003589,10]
[402093205,1768516273149,-627.39,0.0003589,10]
[402093206,1768516273159,-919.64,0.0003589,10]
[402093207,1768516273168,-1150.65,0.0003589,10]
[402093208,1768516273177,-500.0,0.0003589,10]
[402093209,1768516273186,-1077.45,0.0003589,10]
[402093210,1768516273196,-500.0,0.0003589,10]
[402093211,1768516273215,-693.44,0.0003589,10]
[402093212,1768516273225,-607.84,0.0003589,10]
[402093213,1768516273234,-1339.38,0.0003589,10]
[402093214,1768516273244,-633.83,0.0003589,10]
[402093215,1768516273254,-500.0,0.0003589,10]
[402093216,1768516273264,-500.0,0.0003589,10]
[402093217,1768516273273,-589.48,0.0003589,10]
[402093218,1768516273283,-1102.97,0.0003589,10]
[402093219,1768516273292,-1117.37,0.0003589,10]
[402093220,1768516273302,-943.05,0.0003589,10]
[402093221,1768516273311,-500.0,0.0003589,10]
[402093222,1768516273321,-500.0,0.0003589,10]
[402093223,1768516273334,-3501.74,0.0003589,10]
[402093224,1768516273344,-500.0,0.0003589,10]
[402093225,1768516273356,-1268.94,0.0003589,10]
[402093226,1768516273367,-164.53695788,0.0003589,10]
[402093227,1768516273379,-500.0,0.0003589,10]
[402093228,1768516273388,-500.0,0.0003589,10]
[402093229,1768516273398,-861.72,0.0003589,10]
[402093230,1768516273410,-500.0,0.0003589,10]
[402093231,1768516273419,-551.14,0.0003589,10]
[402093232,1768516273429,-500.0,0.0003589,10]
[402093233,1768516273438,-519.62,0.0003589,10]
[402093234,1768516273448,-548.15,0.0003589,10]
[402093235,1768516273458,-708.78,0.0003589,10]
[402093236,1768516273468,-500.0,0.0003589,10]
[402093237,1768516273478,-500.0,0.0003589,10]
[402093238,1768516273488,-593.32908401,0.0003589,2]
[402093239,1768516273497,-595.85,0.0003589,10]
[402093240,1768516273508,-598.81,0.0003589,10]
[402093241,1768516273519,-500.0,0.0003589,10]
[402093242,1768516273528,-500.0,0.0003589,10]
[402093243,1768516273538,-1710.63,0.0003589,10]
[402093244,1768516273548,-500.0,0.0003589,10]
[402093245,1768516273557,-500.0,0.0003589,10]
[402093246,1768516273567,-2484.76,0.0003589,10]
[402093247,1768516273577,-500.0,0.0003589,10]
[402093248,1768516273587,-1079.1,0.0003589,10]
[402093249,1768516273596,-1369.55,0.0003589,10]
[402093250,1768516273607,-500.0,0.0003589,10]
[402093251,1768516273616,-500.0,0.0003589,10]
[402093252,1768516273627,-1280.32,0.0003589,10]
[402093253,1768516273637,-500.0,0.0003589,10]
[402093254,1768516273647,-539.61,0.0003589,10]
[402093255,1768516273657,-769.24,0.0003589,10]
[402093256,1768516273667,-1281.04,0.0003589,10]
[402093257,1768516273677,-500.0,0.0003589,10]
[402093258,1768516273686,-500.0,0.0003589,10]
[402093259,1768516273697,-500.0,0.0003589,10]
[402093260,1768516273706,-1554.58,0.0003589,10]
[402093261,1768516273716,-602.75020947,0.0003589,10]
[402093262,1768516273726,-1279.83,0.0003589,10]
[402093263,1768516273736,-810.8,0.0003589,10]
[402093264,1768516273745,-500.0,0.0003589,10]
[402093265,1768516273755,-506.28,0.0003589,10]
[402093266,1768516273764,-1329.06,0.0003589,10]
[402093267,1768516273774,-664.88,0.0003589,10]
[402093268,1768516273783,-500.0,0.0003589,10]
[402093269,1768516273792,-500.0,0.0003589,10]
[402093270,1768516273802,-500.0,0.0003589,10]
[402093271,1768516273811,-500.0,0.0003589,10]
[402093272,1768516273821,-592.63,0.0003589,10]
[402093273,1768516273831,-500.0,0.0003589,10]
[402093274,1768516273841,-963.24,0.0003589,10]
[402093275,1768516273851,-786.56,0.0003589,10]
[402093276,1768516273861,-500.0,0.0003589,10]
[402093277,1768516273870,-557.28,0.0003589,10]
[402093278,1768516273880,-500.0,0.0003589,10]
[402093279,1768516273890,-682.55,0.0003589,10]
[402093280,1768516273899,-1225.26,0.0003589,10]
[402093281,1768516273909,-500.0,0.0003589,10]
[402093282,1768516273919,-500.0,0.0003589,10]
[402093283,1768516273929,-1385.12,0.0003589,10]
[402093284,1768516273939,-1072.74,0.0003589,10]
[402093285,1768516273949,-500.0,0.0003589,10]
[402093286,1768516273960,-500.0,0.0003589,10]
[402093287,1768516273969,-500.0,0.0003589,10]
[402093288,1768516273979,-500.0,0.0003589,10]
[402093289,1768516273988,-500.0,0.0003589,10]
[402093290,1768516273998,-500.0,0.0003589,10]
[402093291,1768516274008,-1107.78,0.0003589,10]
[402093292,1768516274018,-720.25,0.0003589,10]
[402093293,1768516274030,-365.10396075,0.0003589,10]
[402093294,1768516274040,-4366.13,0.0003589,10]
[402093295,1768516274050,-1318.77,0.0003589,10]
[402093296,1768516274061,-622.05,0.0003589,10]
[402093297,1768516274071,-1492.47,0.0003589,10]
[402093298,1768516274081,-500.0,0.0003589,10]
[402093299,1768516274092,-2196.9,0.0003589,10]
[402093300,1768516274101,-500.0,0.0003589,10]
[402093301,1768516274110,-447.66,0.0003589,10]
[402093302,1768516274120,-500.0,0.0003589,10]
[402093303,1768516274130,-1463.17,0.0003589,10]
[402093304,1768516274142,-2165.93,0.0003589,10]
[402093305,1768516274152,-510.23,0.0003589,10]
[402093306,1768516274162,-658.52,0.0003589,10]
[402093307,1768516274172,-676.56,0.0003589,10]
[402093308,1768516274183,-621.26,0.0003589,10]
[402093309,1768516274192,-1532.44,0.0003589,10]
[402093310,1768516274202,-725.4,0.0003589,10]
[402093311,1768516274212,-1319.24,0.0003589,10]
[402093312,1768516274221,-736.07,0.0003589,10]
[402093313,1768516274231,-764.73,0.0003589,10]
[402093314,1768516274241,-1779.53,0.0003589,10]
[402093315,1768516274252,-500.0,0.0003589,10]
[402093316,1768516274261,-500.0,0.0003589,10]
[402093317,1768516274271,-1462.73,0.0003589,10]
[402093318,1768516274281,-1004.28,0.0003589,10]
[402093319,1768516274290,-775.29,0.0003589,10]
[402093320,1768516274300,-1955.68,0.0003589,10]
[402093321,1768516274310,-667.19,0.0003589,10]
[402093322,1768516274320,-500.0,0.0003589,10]
[402093323,1768516274333,-1026.84,0.0003589,10]
[402093324,1768516274343,-656.46,0.0003589,10]
[402093325,1768516274352,-500.0,0.0003589,10]
[402093326,1768516274362,-500.0,0.0003589,120]
[402093327,1768516274371,-1109.33,0.0003589,10]
[402093328,1768516274381,-151.0,0.0003589,31]
[402093329,1768516274390,-500.0,0.0003589,10]
[402093330,1768516274401,-674.74,0.0003589,10]
[402093331,1768516274410,-539.78,0.0003589,10]
[402093332,1768516274420,-500.0,0.0003589,10]
[402093333,1768516274429,-2391.04,0.0003589,10]
[402093334,1768516274439,-500.0,0.0003589,10]
[402093335,1768516274449,-646.8,0.0003589,10]
[402093336,1768516274458,-1482.29,0.0003589,10]
[402093337,1768516274467,-500.0,0.0003589,10]
[402093338,1768516274476,-1886.82,0.0003589,10]
[402093339,1768516274486,-500.0,0.0003589,10]
[402093340,1768516274495,-751.15,0.0003589,10]
[402093341,1768516274504,-1519.92,0.0003589,10]
[402093342,1768516274514,-500.0,0.0003589,10]
[402093343,1768516274523,-1039.27,0.0003589,10]
[402093344,1768516274532,-500.0,0.0003589,10]
[402093345,1768516274541,-356.22247844,0.0003589,10]
[402093346,1768516274550,-500.0,0.0003589,10]
[402093347,1768516274560,-984.36,0.0003589,10]
[402093348,1768516274569,-1396.27,0.0003589,10]
[402093349,1768516274578,-961.16,0.0003589,10]
[402093350,1768516274587,-702.48,0.0003589,10]
[402093351,1768516274596,-917.1,0.0003589,10]
[402093352,1768516274606,-815.92,0.0003589,10]
[402093353,1768516274615,-468.48472735,0.0003589,10]
[402093354,1768516274625,-500.0,0.0003589,10]
[402093355,1768516274634,-601.52,0.0003589,10]
[402093356,1768516274644,-897.67,0.0003589,10]
[402093357,1768516274653,-615.14129962,0.0003589,10]
[402093358,1768516274663,-1226.09,0.0003589,10]
[402093359,1768516274672,-654.29,0.0003589,10]
[402093360,1768516274682,-4971.19,0.0003589,10]
[402093361,1768516274691,-2892.37,0.0003589,10]
[402093362,1768516274700,-441.61275945,0.0003589,10]
[402093363,1768516274710,-646.16,0.0003589,10]
[402093364,1768516274719,-500.0,0.0003589,10]
[402093365,1768516274730,-1219.9,0.0003589,10]
[402093366,1768516274740,-500.0,0.0003589,10]
[402093367,1768516274750,-2413.27,0.0003589,10]
[402093368,1768516274760,-872.93,0.0003589,10]
[402093369,1768516274769,-557.04,0.0003589,10]
[402093370,1768516274779,-876.15,0.0003589,10]
[402093371,1768516274788,-500.0,0.0003589,10]
[402093372,1768516274798,-500.0,0.0003589,10]
[402093373,1768516274808,-500.0,0.0003589,10]
[402093374,1768516274818,-500.0,0.0003589,10]
[402093375,1768516274828,-220.16325957,0.0003589,10]
[402093376,1768516274838,-9743.76,0.0003589,10]
[402093377,1768516274848,-822.7,0.0003589,10]
[402093378,1768516274858,-1313.15,0.0003589,10]
[402093379,1768516274867,-500.0,0.0003589,10]
[402093380,1768516274876,-864.13,0.0003589,10]
[402093381,1768516274886,-500.0,0.0003589,10]
[402093382,1768516274896,-500.0,0.0003589,10]
[402093383,1768516274905,-1445.46,0.0003589,10]
[402093384,1768516274915,-1031.5,0.0003589,10]
[402093385,1768516274924,-2142.55,0.0003589,10]
[402093386,1768516274933,-1254.81,0.0003589,10]
[402093387,1768516274942,-983.16,0.0003589,10]
[402093388,1768516274952,-1086.97,0.0003589,10]
[402093389,1768516274962,-500.0,0.0003589,10]
[402093390,1768516274971,-500.0,0.0003589,10]
[402093391,1768516274981,-500.0,0.0003589,10]
[402093392,1768516274990,-500.0,0.0003589,10]
[402093393,1768516274999,-1030.83,0.0003589,10]
[402093394,1768516275009,-1010.69,0.0003589,10]
[402093395,1768516275019,-1345.9,0.0003589,10]
[402093396,1768516275029,-624.65,0.0003589,10]
[402093397,1768516275039,-2626.96,0.0003589,10]
[402093398,1768516275050,-500.0,0.0003589,10]
[402093399,1768516275059,-698.78,0.0003589,10]
[402093400,1768516275069,-500.0,0.0003589,10]
[402093401,1768516275079,-1953.43,0.0003589,10]
[402093402,1768516275088,-566.2408219,0.0003589,10]
[402093403,1768516275097,-1040.83,0.0003589,10]
[402093404,1768516275106,-757.77,0.0003589,10]
[402093405,1768516275115,-1302.69,0.0003589,10]
[402093406,1768516275124,-2614.12,0.0003589,10]
[402093407,1768516275134,-908.12,0.0003589,10]
[402093408,1768516275143,-500.0,0.0003589,10]
[402093409,1768516275153,-500.0,0.0003589,10]
[402093410,1768516275162,-500.0,0.0003589,10]
[402093411,1768516275172,-526.41,0.0003589,10]
[402093412,1768516275182,-500.0,0.0003589,10]
[402093413,1768516275192,-500.0,0.0003589,10]
[402093414,1768516275202,-728.71,0.0003589,10]
[402093415,1768516275212,-1179.36,0.0003589,10]
[402093416,1768516275221,-1044.7,0.0003589,10]
[402093417,1768516275231,-3431.13,0.0003589,10]
[402093418,1768516275240,-500.0,0.0003589,10]
[402093419,1768516275250,-670.29,0.0003589,10]
[402093420,1768516275259,-500.0,0.0003589,10]
[402093421,1768516275269,-500.0,0.0003589,10]
[402093422,1768516275279,-657.34,0.0003589,10]
[402093423,1768516275288,-945.82,0.0003589,10]
[402093424,1768516275299,-826.63,0.0003589,10]
[402093425,1768516275311,-693.96,0.0003589,10]
[402093426,1768516275320,-500.0,0.0003589,10]
[402093427,1768516275334,-500.0,0.0003589,10]
[402093428,1768516275344,-790.04,0.0003589,10]
[402093429,1768516275354,-500.0,0.0003589,10]
[402093430,1768516275363,-724.31,0.0003589,10]
[402093431,1768516275373,-500.0,0.0003589,10]
[402093432,1768516275383,-500.0,0.0003589,10]
[402093433,1768516275392,-500.0,0.0003589,10]
[402093434,1768516275403,-1073.47,0.0003589,10]
[402093435,1768516275413,-222.487597,0.0003589,7]
[402093436,1768516275422,-500.0,0.0003589,10]
[402093437,1768516275432,-3101.64,0.0003589,10]
[402093438,1768516275441,-1920.06,0.0003589,10]
[402093439,1768516275451,-222.487597,0.0003589,7]
[402093440,1768516275460,-500.0,0.0003589,10]
[402093441,1768516275470,-222.487597,0.0003589,7]
[402093442,1768516275479,-1094.18,0.0003589,10]
[402093443,1768516275489,-578.79241899,0.0003589,10]
[402093444,1768516275498,-500.0,0.0003589,10]
[402093445,1768516275508,-1902.25,0.0003589,10]
[402093446,1768516275519,-1027.35,0.0003589,10]
[402093447,1768516275531,-222.487597,0.0003589,7]
[402093448,1768516275541,-504.92104948,0.0003589,10]
[402093449,1768516275551,-500.0,0.0003589,10]
[402093450,1768516275562,-500.0,0.0003589,10]
[402093451,1768516275572,-500.0,0.0003589,10]
[402093452,1768516275582,-1697.09,0.0003589,10]
[402093453,1768516275591,-500.0,0.0003589,10]
[402093454,1768516275601,-626.29,0.0003589,10]
[402093455,1768516275611,-1903.81,0.0003589,10]
[402093456,1768516275621,-500.0,0.0003589,10]
[402093457,1768516275632,-1827.96,0.0003589,10]
[402093458,1768516275642,-500.0,0.0003589,10]
[402093459,1768516275651,-151.0,0.0003589,31]
[402093460,1768516275661,-1297.84,0.0003589,10]
[402093461,1768516275671,-271.654386,0.0003589,31]
[402093462,1768516275681,-728.36,0.0003589,10]
[402093463,1768516275691,-500.0,0.0003589,10]
[402093464,1768516275702,-508.87892613,0.0003589,10]
[402093465,1768516275712,-2283.02,0.0003589,10]
[402093466,1768516275722,-576.88,0.0003589,10]
[402093467,1768516275732,-500.0,0.0003589,10]
[402093468,1768516275742,-637.55893607,0.0003589,10]
[402093469,1768516275752,-722.08,0.0003589,10]
[402093470,1768516275765,-500.0,0.0003589,10]
[402093471,1768516275776,-500.0,0.0003589,10]
[402093472,1768516275788,-500.0,0.0003589,10]
[402093473,1768516275802,-500.0,0.0003589,10]
[402093474,1768516275812,-500.0,0.0003589,10]
[402093475,1768516275822,-584.27,0.0003589,10]
[402093476,1768516275833,-500.0,0.0003589,10]
[402093477,1768516275843,-694.93,0.0003589,10]
[402093478,1768516275853,-500.0,0.0003589,10]
[402093479,1768516275864,-1019.24,0.0003589,10]
[402093480,1768516275874,-1152.19,0.0003589,10]
[402093481,1768516275883,-500.0,0.0003589,10]
[402093482,1768516275894,-2173.57,0.0003589,10]
[402093483,1768516275904,-500.0,0.0003589,10]
[402093484,1768516275914,-500.0,0.0003589,10]
[402093485,1768516275925,-772.06,0.0003589,10]
[402093486,1768516275935,-636.76,0.0003589,10]
[402093487,1768516275946,-571.08336812,0.0003589,10]
[402093488,1768516275955,-500.0,0.0003589,10]
[402093489,1768516275965,-956.46,0.0003589,10]
[402093490,1768516275975,-500.0,0.0003589,10]
[402093491,1768516275985,-500.0,0.0003589,10]
[402093492,1768516275996,-500.0,0.0003589,10]
[402093493,1768516276006,-1397.63,0.0003589,10]
[402093494,1768516276015,-819.76,0.0003589,10]
[402093495,1768516276025,-360.07933839,0.0003589,10]
[402093496,1768516276035,-500.0,0.0003589,10]
[402093497,1768516276046,-836.87,0.0003589,10]
[402093498,1768516276056,-1942.46,0.0003589,10]
[402093499,1768516276065,-500.0,0.0003589,10]
[402093500,1768516276075,-1182.26,0.0003589,10]
[402093501,1768516276084,-529.47334993,0.0003589,10]
[402093502,1768516276094,-774.05,0.0003589,10]
[402093503,1768516276103,-500.0,0.0003589,10]
[402093504,1768516276113,-535.19,0.0003589,10]
[402093505,1768516276122,-500.0,0.0003589,10]
[402093506,1768516276132,-500.0,0.0003589,10]
[402093507,1768516276141,-1478.73,0.0003589,10]
[402093508,1768516276150,-500.0,0.0003589,10]
[402093509,1768516276160,-500.0,0.0003589,10]
[402093510,1768516276169,-500.0,0.0003589,10]
[402093511,1768516276180,-1748.33,0.0003589,10]
[402093512,1768516276192,-3067.68,0.0003589,10]
[402093513,1768516276201,-1519.56,0.0003589,10]
[402093514,1768516276211,-797.75,0.0003589,10]
[402093515,1768516276222,-1056.34,0.0003589,10]
[402093516,1768516276231,-500.0,0.0003589,10]
[402093517,1768516276241,-500.0,0.0003589,10]
[402093518,1768516276251,-500.0,0.0003589,10]
[402093519,1768516276260,-500.0,0.0003589,10]
[402093520,1768516276270,-500.0,0.0003589,10]
[402093521,1768516276279,-503.55,0.0003589,10]
[402093522,1768516276289,-1807.32,0.0003589,10]
[402093523,1768516276299,-500.0,0.0003589,5]
[402093524,1768516276309,-500.0,0.0003589,10]
[402093525,1768516276318,-640.76,0.0003589,10]
[402093526,1768516276330,-500.0,0.0003589,10]
[402093527,1768516276348,-745.51,0.0003589,10]
[402093528,1768516276358,-1026.12,0.0003589,10]
[402093529,1768516276367,-1787.71,0.0003589,10]
[402093530,1768516276378,-1313.53,0.0003589,10]
[402093531,1768516276389,-500.0,0.0003589,10]
[402093532,1768516276401,-500.0,0.0003589,10]
[402093533,1768516276411,-2000.51,0.0003589,10]
[402093534,1768516276422,-1078.12,0.0003589,10]
[402093535,1768516276433,-1161.03,0.0003589,10]
[402093536,1768516276444,-500.0,0.0003589,10]
[402093537,1768516276453,-500.0,0.0003589,10]
[402093538,1768516276463,-635.48,0.0003589,10]
[402093539,1768516276473,-876.92,0.0003589,10]
[402093540,1768516276483,-561.5,0.0003589,10]
[402093541,1768516276493,-500.0,0.0003589,10]
[402093542,1768516276503,-757.11,0.0003589,10]
[402093543,1768516276514,-500.0,0.0003589,10]
[402093544,1768516276524,-500.0,0.0003589,10]
[402093545,1768516276535,-4017.04,0.0003589,10]
[402093546,1768516276545,-500.0,0.0003589,10]
[402093547,1768516276557,-500.0,0.0003589,10]
[402093548,1768516276568,-500.0,0.0003589,10]
[402093549,1768516276579,-500.0,0.0003589,10]
[402093550,1768516276590,-500.0,0.0003589,10]
[402093551,1768516276601,-1005.01,0.0003589,10]
[402093552,1768516276613,-4636.45,0.0003589,10]
[402093553,1768516276622,-500.0,0.0003589,10]
[402093554,1768516276632,-1576.78,0.0003589,10]
[402093555,1768516276642,-517.85,0.0003589,10]
[402093556,1768516276652,-500.0,0.0003589,10]
[402093557,1768516276662,-1797.28,0.0003589,10]
[402093558,1768516276672,-1580.48,0.0003589,10]
[402093559,1768516276682,-482.09934339,0.0003589,10]
[402093560,1768516276692,-500.0,0.0003589,10]
[402093561,1768516276702,-500.0,0.0003589,10]
[402093562,1768516276713,-500.0,0.0003589,10]
[402093563,1768516276723,-500.0,0.0003589,10]
[402093564,1768516276732,-500.0,0.0003589,10]
[402093565,1768516276742,-556.78912931,0.0003589,10]
[402093566,1768516276752,-500.0,0.0003589,10]
[402093567,1768516276762,-500.0,0.0003589,10]
[402093568,1768516276772,-500.0,0.0003589,10]
[402093569,1768516276782,-500.0,0.0003589,10]
[402093570,1768516276793,-500.0,0.0003589,10]
[402093571,1768516276804,-1000.0,0.0003589,10]
[402093572,1768516276814,-500.0,0.0003589,10]
[402093573,1768516276824,-1291.36,0.0003589,10]
[402093574,1768516276834,-1286.31,0.0003589,10]
[402093575,1768516276844,-1211.3,0.0003589,10]
[402093576,1768516276854,-500.0,0.0003589,10]
[402093577,1768516276864,-1235.76,0.0003589,10]
[402093578,1768516276874,-500.0,0.0003589,10]
[402093579,1768516276885,-1585.11,0.0003589,10]
[402093580,1768516276897,-602.53,0.0003589,10]
[402093581,1768516276907,-958.73,0.0003589,10]
[402093582,1768516276918,-1437.28,0.0003589,10]
[402093583,1768516276928,-500.0,0.0003589,10]
[402093584,1768516276939,-719.23,0.0003589,10]
[402093585,1768516276949,-1453.66,0.0003589,10]
[402093586,1768516276959,-500.0,0.0003589,10]
[402093587,1768516276970,-176.11673824,0.0003589,10]
[402093588,1768516276980,-500.0,0.0003589,10]
[402093589,1768516276990,-853.73,0.0003589,10]
[402093590,1768516277000,-272.93321369,0.0003589,10]